[Event "*** Titled Tuesday Blitz"]
[Site "Chess.com"]
[Date "2020.04.28"]
[Round "5"]
[White "JakeCarlosBanawa"]
[Black "ZCorrales"]
[Result "1-0"]
[WhiteElo "2319"]
[BlackElo "2075"]
[TimeControl "180+1"]
[EndTime "10:55:40 PDT"]
[Termination "JakeCarlosBanawa won on time"]

1. d4 {[%clk 0:03:00.9]} 1... d5 {[%clk 0:02:58.7]} 2. c4 {[%clk 0:03:00.3]}
2... e6 {[%clk 0:02:58]} 3. Nc3 {[%clk 0:02:58.4]} 3... Nf6 {[%clk 0:02:57.9]}
4. cxd5 {[%clk 0:02:56.8]} 4... exd5 {[%clk 0:02:57.3]} 5. Bg5 {[%clk 0:02:56]}
5... Be7 {[%clk 0:02:56.4]} 6. e3 {[%clk 0:02:55.2]} 6... c6 {[%clk 0:02:54.8]}
7. Bd3 {[%clk 0:02:54.6]} 7... O-O {[%clk 0:02:54.1]} 8. Qc2 {[%clk 0:02:54.7]}
8... h6 {[%clk 0:02:52.7]} 9. Bf4 {[%clk 0:02:50.6]} 9... Nbd7 {[%clk
0:02:38.2]} 10. h3 {[%clk 0:02:44.3]} 10... Re8 {[%clk 0:02:37.1]} 11. g4 {[%clk
0:02:36.5]} 11... Nf8 {[%clk 0:02:20.3]} 12. O-O-O {[%clk 0:02:28.9]} 12... N6h7
{[%clk 0:01:58.8]} 13. Nf3 {[%clk 0:02:20.7]} 13... b5 {[%clk 0:01:56.7]} 14.
Ne5 {[%clk 0:02:17.6]} 14... Qb6 {[%clk 0:01:45.1]} 15. Bxh7+ {[%clk 0:02:04.6]}
15... Nxh7 {[%clk 0:01:44.1]} 16. Nxf7 {[%clk 0:02:04.8]} 16... Kxf7 {[%clk
0:01:43.6]} 17. Qxh7 {[%clk 0:02:04.1]} 17... b4 {[%clk 0:01:41.8]} 18. Ne2
{[%clk 0:01:54.1]} 18... b3 {[%clk 0:01:19]} 19. axb3 {[%clk 0:01:22.6]} 19...
Qxb3 {[%clk 0:01:17.8]} 20. Be5 {[%clk 0:01:20.4]} 20... Qc4+ {[%clk 0:00:43.8]}
21. Qc2 {[%clk 0:01:03.6]} 21... Qxc2+ {[%clk 0:00:37.4]} 22. Kxc2 {[%clk
0:01:04.5]} 22... Ba6 {[%clk 0:00:31]} 23. Nc3 {[%clk 0:00:59.1]} 23... Rac8
{[%clk 0:00:20.4]} 24. Ra1 {[%clk 0:00:57.1]} 24... Bc4 {[%clk 0:00:18.1]} 25.
Rxa7 {[%clk 0:00:56.2]} 25... c5 {[%clk 0:00:17.1]} 26. dxc5 {[%clk 0:00:46.8]}
26... Rxc5 {[%clk 0:00:15.4]} 27. Rd1 {[%clk 0:00:35.3]} 27... Kg8 {[%clk
0:00:13.1]} 28. Rxe7 {[%clk 0:00:33.8]} 28... Rxe7 {[%clk 0:00:10.4]} 29. Bd6
{[%clk 0:00:34.4]} 29... Bb3+ {[%clk 0:00:05.3]} 30. Kxb3 {[%clk 0:00:33.5]}
30... Rb7+ {[%clk 0:00:04.9]} 31. Kc2 {[%clk 0:00:33]} 31... Rc6 {[%clk
0:00:05]} 32. Be5 {[%clk 0:00:26.7]} 32... Rcb6 {[%clk 0:00:05.1]} 33. Nxd5
{[%clk 0:00:23.5]} 33... Rb5 {[%clk 0:00:05.2]} 34. Bc3 {[%clk 0:00:22.9]} 34...
Kf7 {[%clk 0:00:04.5]} 35. e4 {[%clk 0:00:22.9]} 35... Ra7 {[%clk 0:00:03.5]}
36. f4 {[%clk 0:00:22.1]} 36... g5 {[%clk 0:00:03]} 37. f5 {[%clk 0:00:21.2]}
37... Ra4 {[%clk 0:00:03.5]} 38. e5 {[%clk 0:00:20.4]} 38... Re4 {[%clk
0:00:02.8]} 39. e6+ {[%clk 0:00:20.4]} 39... Kf8 {[%clk 0:00:02.5]} 40. e7+
{[%clk 0:00:19.8]} 40... Kf7 {[%clk 0:00:02.5]} 41. f6 {[%clk 0:00:20.1]} 41...
Re2+ {[%clk 0:00:01.7]} 42. Kb1 {[%clk 0:00:19.2]} 1-0

[Event "*** Titled Tuesday Blitz"]
[Site "Chess.com"]
[Date "2020.04.28"]
[Round "5"]
[White "GameOverBro"]
[Black "Chessterra87"]
[Result "1-0"]
[WhiteElo "2509"]
[BlackElo "2310"]
[TimeControl "180+1"]
[EndTime "10:55:41 PDT"]
[Termination "GameOverBro won on time"]

1. e4 {[%clk 0:03:00.9]} 1... c5 {[%clk 0:02:54.6]} 2. Ne2 {[%clk 0:03:00.5]}
2... e6 {[%clk 0:02:54.2]} 3. Nbc3 {[%clk 0:02:58]} 3... a6 {[%clk 0:02:52]} 4.
d4 {[%clk 0:02:57.1]} 4... cxd4 {[%clk 0:02:51.9]} 5. Nxd4 {[%clk 0:02:58]} 5...
b5 {[%clk 0:02:51]} 6. g3 {[%clk 0:02:57.3]} 6... Bb7 {[%clk 0:02:49.9]} 7. a3
{[%clk 0:02:55.6]} 7... Nf6 {[%clk 0:02:47.2]} 8. Bg2 {[%clk 0:02:55.7]} 8...
Qc7 {[%clk 0:02:46.8]} 9. O-O {[%clk 0:02:54.4]} 9... d6 {[%clk 0:02:46.2]} 10.
f4 {[%clk 0:02:39.4]} 10... Nbd7 {[%clk 0:02:42.5]} 11. f5 {[%clk 0:02:38.5]}
11... e5 {[%clk 0:02:35.5]} 12. Nb3 {[%clk 0:02:31.4]} 12... Be7 {[%clk
0:02:35.2]} 13. Be3 {[%clk 0:02:22.3]} 13... O-O {[%clk 0:02:33.9]} 14. g4
{[%clk 0:02:20.3]} 14... Nc5 {[%clk 0:02:20.1]} 15. Nxc5 {[%clk 0:02:16]} 15...
dxc5 {[%clk 0:02:19.4]} 16. g5 {[%clk 0:02:16]} 16... Rfd8 {[%clk 0:02:05.8]}
17. Qe2 {[%clk 0:02:02.9]} 17... Ne8 {[%clk 0:02:01.4]} 18. f6 {[%clk
0:01:57.5]} 18... Bf8 {[%clk 0:01:59.1]} 19. fxg7 {[%clk 0:01:53.1]} 19... Bxg7
{[%clk 0:01:56]} 20. Rf2 {[%clk 0:01:46.1]} 20... b4 {[%clk 0:01:49.7]} 21. axb4
{[%clk 0:01:45.5]} 21... cxb4 {[%clk 0:01:49.7]} 22. Nd5 {[%clk 0:01:46.1]}
22... Bxd5 {[%clk 0:01:48.5]} 23. exd5 {[%clk 0:01:47]} 23... a5 {[%clk
0:01:34.8]} 24. d6 {[%clk 0:01:43.6]} 24... Nxd6 {[%clk 0:01:30.6]} 25. Bxa8
{[%clk 0:01:42.3]} 25... Rxa8 {[%clk 0:01:31.5]} 26. Rd1 {[%clk 0:01:19.2]}
26... a4 {[%clk 0:01:18.8]} 27. Qd3 {[%clk 0:01:12.4]} 27... a3 {[%clk
0:00:57.7]} 28. Qd5 {[%clk 0:01:07.7]} 28... Ra7 {[%clk 0:00:41.9]} 29. Bxa7
{[%clk 0:01:05.8]} 29... Qxa7 {[%clk 0:00:32.3]} 30. Qxd6 {[%clk 0:00:58.7]}
30... a2 {[%clk 0:00:32.6]} 31. Qd8+ {[%clk 0:00:45.9]} 31... Bf8 {[%clk
0:00:31.2]} 32. Ra1 {[%clk 0:00:45.7]} 32... e4 {[%clk 0:00:18.2]} 33. Qd5
{[%clk 0:00:40]} 33... e3 {[%clk 0:00:16.6]} 34. Re2 {[%clk 0:00:38.3]} 34...
Qa6 {[%clk 0:00:06.6]} 35. Kf1 {[%clk 0:00:22.7]} 35... b3 {[%clk 0:00:04.5]}
36. Qxb3 {[%clk 0:00:19.9]} 36... Qd6 {[%clk 0:00:01.1]} 37. Qxa2 {[%clk
0:00:16.4]} 1-0

[Event "*** Titled Tuesday Blitz"]
[Site "Chess.com"]
[Date "2020.04.28"]
[Round "5"]
[White "David_Paravyan"]
[Black "Keranke"]
[Result "1-0"]
[WhiteElo "2965"]
[BlackElo "2769"]
[TimeControl "180+1"]
[EndTime "10:55:42 PDT"]
[Termination "David_Paravyan won by resignation"]

1. e4 {[%clk 0:03:00.9]} 1... d5 {[%clk 0:02:59.3]} 2. exd5 {[%clk 0:03:00.8]}
2... Qxd5 {[%clk 0:03:00.2]} 3. Nc3 {[%clk 0:03:01.3]} 3... Qa5 {[%clk
0:03:00.5]} 4. d4 {[%clk 0:03:01.8]} 4... Nf6 {[%clk 0:03:00.9]} 5. Nf3 {[%clk
0:03:01.9]} 5... c6 {[%clk 0:03:01.2]} 6. h3 {[%clk 0:02:55.9]} 6... Bf5 {[%clk
0:03:00]} 7. Nh4 {[%clk 0:02:55.6]} 7... Bg6 {[%clk 0:02:58]} 8. Bc4 {[%clk
0:02:30.9]} 8... e6 {[%clk 0:02:57.7]} 9. Bd2 {[%clk 0:02:29.5]} 9... Qb6 {[%clk
0:02:53.5]} 10. Nxg6 {[%clk 0:02:22.4]} 10... hxg6 {[%clk 0:02:54.4]} 11. Qe2
{[%clk 0:02:20.5]} 11... Nbd7 {[%clk 0:02:43.5]} 12. O-O-O {[%clk 0:02:05.5]}
12... O-O-O {[%clk 0:02:36.6]} 13. Be3 {[%clk 0:01:17]} 13... Qc7 {[%clk
0:02:22.4]} 14. Bb3 {[%clk 0:01:07.2]} 14... Bd6 {[%clk 0:02:19.3]} 15. g3
{[%clk 0:01:00]} 15... Nb6 {[%clk 0:02:06.4]} 16. Kb1 {[%clk 0:00:59.2]} 16...
Nbd5 {[%clk 0:02:05.5]} 17. Nxd5 {[%clk 0:00:47.6]} 17... exd5 {[%clk
0:01:46.8]} 18. c4 {[%clk 0:00:47.8]} 18... Qe7 {[%clk 0:01:34.9]} 19. cxd5
{[%clk 0:00:27.2]} 19... Nxd5 {[%clk 0:01:34.1]} 20. Bxd5 {[%clk 0:00:27.7]}
20... cxd5 {[%clk 0:01:34.8]} 21. Qb5 {[%clk 0:00:27]} 21... Bxg3 {[%clk
0:01:22.1]} 22. fxg3 {[%clk 0:00:15]} 22... Qxe3 {[%clk 0:01:21.8]} 23. Rhe1
{[%clk 0:00:11.3]} 23... Qg5 {[%clk 0:01:07.2]} 24. Re5 {[%clk 0:00:09.7]} 24...
Qf6 {[%clk 0:01:03.1]} 25. Rf1 {[%clk 0:00:10.1]} 25... Qb6 {[%clk 0:00:36.6]}
26. Qxb6 {[%clk 0:00:05.7]} 26... axb6 {[%clk 0:00:37.5]} 27. Rxf7 {[%clk
0:00:05.6]} 27... Rd7 {[%clk 0:00:26.6]} 28. Rxd7 {[%clk 0:00:05]} 28... Kxd7
{[%clk 0:00:27.5]} 29. Rxd5+ {[%clk 0:00:05.3]} 29... Ke6 {[%clk 0:00:28.2]} 30.
Re5+ {[%clk 0:00:04.5]} 30... Kf6 {[%clk 0:00:26.8]} 31. h4 {[%clk 0:00:04.8]}
31... Rd8 {[%clk 0:00:27.4]} 32. Rb5 {[%clk 0:00:05.3]} 32... Rxd4 {[%clk
0:00:20.2]} 33. Rxb6+ {[%clk 0:00:05.3]} 33... Kf5 {[%clk 0:00:21.1]} 34. Rxb7
{[%clk 0:00:05.5]} 34... Rd3 {[%clk 0:00:20.3]} 35. Rb3 {[%clk 0:00:05.7]} 35...
Rd1+ {[%clk 0:00:20.2]} 36. Kc2 {[%clk 0:00:06]} 36... Rg1 {[%clk 0:00:19.9]}
37. a4 {[%clk 0:00:06.3]} 37... Ke4 {[%clk 0:00:20.8]} 38. Ra3 {[%clk
0:00:06.3]} 38... Kd4 {[%clk 0:00:20.8]} 39. a5 {[%clk 0:00:06.8]} 39... Rg2+
{[%clk 0:00:21.4]} 40. Kb1 {[%clk 0:00:06.5]} 1-0

[Event "*** Titled Tuesday Blitz"]
[Site "Chess.com"]
[Date "2020.04.28"]
[Round "5"]
[White "DryCounty"]
[Black "Yuri202062"]
[Result "1-0"]
[WhiteElo "2759"]
[BlackElo "2544"]
[TimeControl "180+1"]
[EndTime "10:55:42 PDT"]
[Termination "DryCounty won by resignation"]

1. e4 {[%clk 0:03:00.9]} 1... c5 {[%clk 0:02:59.1]} 2. Nf3 {[%clk 0:03:00.2]}
2... e6 {[%clk 0:02:59.1]} 3. d4 {[%clk 0:03:00.1]} 3... cxd4 {[%clk 0:02:59.1]}
4. Nxd4 {[%clk 0:03:01]} 4... a6 {[%clk 0:02:59.1]} 5. Nc3 {[%clk 0:03:00.3]}
5... d6 {[%clk 0:02:56.1]} 6. a4 {[%clk 0:02:57.9]} 6... Nf6 {[%clk 0:02:53.6]}
7. Be2 {[%clk 0:02:57.2]} 7... Be7 {[%clk 0:02:52.2]} 8. Be3 {[%clk 0:02:56.7]}
8... O-O {[%clk 0:02:49.3]} 9. a5 {[%clk 0:02:56.4]} 9... Nbd7 {[%clk
0:02:37.4]} 10. O-O {[%clk 0:02:54.5]} 10... Qc7 {[%clk 0:02:37.2]} 11. f3
{[%clk 0:02:51.3]} 11... b5 {[%clk 0:02:32.3]} 12. axb6 {[%clk 0:02:50.9]} 12...
Nxb6 {[%clk 0:02:32.4]} 13. Qd2 {[%clk 0:02:50]} 13... Nc4 {[%clk 0:02:25.1]}
14. Bxc4 {[%clk 0:02:49.4]} 14... Qxc4 {[%clk 0:02:25.3]} 15. Na4 {[%clk
0:02:44.4]} 15... Rb8 {[%clk 0:02:18.8]} 16. b3 {[%clk 0:02:39.8]} 16... Qc7
{[%clk 0:02:17.3]} 17. Kh1 {[%clk 0:02:22.5]} 17... Bd7 {[%clk 0:02:05.8]} 18.
Qc3 {[%clk 0:02:17.6]} 18... Rfc8 {[%clk 0:01:59.6]} 19. Qxc7 {[%clk 0:02:16.6]}
19... Rxc7 {[%clk 0:01:59.5]} 20. Rfc1 {[%clk 0:01:51.4]} 20... g6 {[%clk
0:01:54.1]} 21. Nb2 {[%clk 0:01:19]} 21... e5 {[%clk 0:01:53.1]} 22. Ne2 {[%clk
0:01:15.6]} 22... d5 {[%clk 0:01:53.2]} 23. exd5 {[%clk 0:01:07.8]} 23... Nxd5
{[%clk 0:01:52.5]} 24. Bd2 {[%clk 0:01:05.1]} 24... Bc8 {[%clk 0:01:41.5]} 25.
Nc4 {[%clk 0:00:57.9]} 25... f6 {[%clk 0:01:40.9]} 26. Nc3 {[%clk 0:00:51.7]}
26... Nb4 {[%clk 0:01:36.7]} 27. Ne4 {[%clk 0:00:47.7]} 27... Bf5 {[%clk
0:01:34.9]} 28. Bxb4 {[%clk 0:00:44]} 28... Rxb4 {[%clk 0:01:29.2]} 29. Rxa6
{[%clk 0:00:43.9]} 29... Kg7 {[%clk 0:01:28.9]} 30. Nc3 {[%clk 0:00:40.2]} 30...
Rd7 {[%clk 0:01:14.4]} 31. g4 {[%clk 0:00:39.9]} 31... Bxc2 {[%clk 0:00:57.1]}
32. Rxc2 {[%clk 0:00:39.6]} 32... Rxb3 {[%clk 0:00:57.5]} 33. Rb6 {[%clk
0:00:34.6]} 33... Rxb6 {[%clk 0:00:50.6]} 34. Nxb6 {[%clk 0:00:34.7]} 34... Rd3
{[%clk 0:00:50.3]} 35. Kg2 {[%clk 0:00:32.7]} 35... f5 {[%clk 0:00:49.5]} 36.
gxf5 {[%clk 0:00:32]} 36... gxf5 {[%clk 0:00:49.3]} 37. Nbd5 {[%clk 0:00:32.5]}
37... Bg5 {[%clk 0:00:46.7]} 38. Kf2 {[%clk 0:00:31.7]} 38... e4 {[%clk
0:00:44.1]} 39. fxe4 {[%clk 0:00:31.2]} 39... fxe4 {[%clk 0:00:44.1]} 40. Nb4
{[%clk 0:00:27.3]} 40... Rh3 {[%clk 0:00:42.9]} 41. Kg2 {[%clk 0:00:26]} 41...
Re3 {[%clk 0:00:42.3]} 42. Nbd5 {[%clk 0:00:21.3]} 42... Rd3 {[%clk 0:00:41]}
43. Nb4 {[%clk 0:00:21.3]} 43... Re3 {[%clk 0:00:40.6]} 44. Ncd5 {[%clk
0:00:21.5]} 44... Rb3 {[%clk 0:00:37.8]} 45. Re2 {[%clk 0:00:20.7]} 45... e3
{[%clk 0:00:33.4]} 46. Kf3 {[%clk 0:00:20.2]} 46... Kg6 {[%clk 0:00:32.5]} 47.
Nc6 {[%clk 0:00:19.9]} 47... Rd3 {[%clk 0:00:30]} 48. Ne5+ {[%clk 0:00:19.2]}
48... Kf5 {[%clk 0:00:28.6]} 49. Nxd3 {[%clk 0:00:20.1]} 49... Ke6 {[%clk
0:00:27.8]} 50. Nxe3 {[%clk 0:00:20.1]} 1-0

[Event "*** Titled Tuesday Blitz"]
[Site "Chess.com"]
[Date "2020.04.28"]
[Round "5"]
[White "Artem_Koval"]
[Black "Leonid_Starozhilov"]
[Result "0-1"]
[WhiteElo "2436"]
[BlackElo "2608"]
[TimeControl "180+1"]
[EndTime "10:55:42 PDT"]
[Termination "Leonid_Starozhilov won on time"]

1. e4 {[%clk 0:03:00.9]} 1... d6 {[%clk 0:02:58.6]} 2. d4 {[%clk 0:03:00.4]}
2... Nf6 {[%clk 0:02:58.9]} 3. Nc3 {[%clk 0:02:59.4]} 3... Nbd7 {[%clk 0:02:59]}
4. f4 {[%clk 0:02:53.5]} 4... e5 {[%clk 0:02:58.9]} 5. Nf3 {[%clk 0:02:53.6]}
5... exd4 {[%clk 0:02:58.9]} 6. Nxd4 {[%clk 0:02:53.5]} 6... g6 {[%clk
0:02:59.1]} 7. Bd3 {[%clk 0:02:51.3]} 7... Bg7 {[%clk 0:02:59.4]} 8. Nf3 {[%clk
0:02:51.1]} 8... O-O {[%clk 0:02:59.2]} 9. O-O {[%clk 0:02:51.5]} 9... Nc5
{[%clk 0:02:59.2]} 10. Qe2 {[%clk 0:02:31.2]} 10... Re8 {[%clk 0:02:54.1]} 11.
Bd2 {[%clk 0:02:31.3]} 11... Nfxe4 {[%clk 0:02:36]} 12. Nxe4 {[%clk 0:02:30.7]}
12... Nxe4 {[%clk 0:02:34.9]} 13. Rae1 {[%clk 0:01:58.8]} 13... Bf5 {[%clk
0:02:23.8]} 14. Qd1 {[%clk 0:01:11.6]} 14... Nxd2 {[%clk 0:01:59.9]} 15. Qxd2
{[%clk 0:01:12.5]} 15... Rxe1 {[%clk 0:01:55.2]} 16. Rxe1 {[%clk 0:01:09.7]}
16... Bxd3 {[%clk 0:01:55.4]} 17. Qxd3 {[%clk 0:01:10.6]} 17... c6 {[%clk
0:01:50.8]} 18. c3 {[%clk 0:01:10.5]} 18... Qb6+ {[%clk 0:01:45.8]} 19. Kh1
{[%clk 0:01:06.2]} 19... Qxb2 {[%clk 0:01:45.7]} 20. Qxd6 {[%clk 0:01:03.9]}
20... Bxc3 {[%clk 0:01:30.7]} 21. Rd1 {[%clk 0:00:55.5]} 21... Qxa2 {[%clk
0:00:14.3]} 22. f5 {[%clk 0:00:51.6]} 22... Bg7 {[%clk 0:00:09.4]} 23. Ng5
{[%clk 0:00:49.1]} 23... Rf8 {[%clk 0:00:05.3]} 24. f6 {[%clk 0:00:44.1]} 24...
Bh6 {[%clk 0:00:05.3]} 25. h3 {[%clk 0:00:37.6]} 25... Qa5 {[%clk 0:00:03.9]}
26. Nf3 {[%clk 0:00:25.7]} 26... Qf5 {[%clk 0:00:04.3]} 27. Qe7 {[%clk
0:00:17.7]} 27... a5 {[%clk 0:00:04.3]} 28. Ra1 {[%clk 0:00:05.8]} 28... Qe6
{[%clk 0:00:04.5]} 29. Qxb7 {[%clk 0:00:05]} 29... Qxf6 {[%clk 0:00:04.9]} 30.
Rxa5 {[%clk 0:00:05.1]} 30... Bf4 {[%clk 0:00:04.9]} 0-1

[Event "*** Titled Tuesday Blitz"]
[Site "Chess.com"]
[Date "2020.04.28"]
[Round "5"]
[White "SoltaniciR"]
[Black "Hikaru"]
[Result "0-1"]
[WhiteElo "2587"]
[BlackElo "3232"]
[TimeControl "180+1"]
[EndTime "10:55:43 PDT"]
[Termination "Hikaru won by resignation"]

1. e4 {[%clk 0:03:00.9]} 1... e6 {[%clk 0:02:54.4]} 2. d4 {[%clk 0:02:46.3]}
2... b6 {[%clk 0:02:53.7]} 3. Nf3 {[%clk 0:02:45.1]} 3... Bb7 {[%clk 0:02:53.4]}
4. Bd3 {[%clk 0:02:45.2]} 4... d5 {[%clk 0:02:52.5]} 5. exd5 {[%clk 0:02:42.4]}
5... Qxd5 {[%clk 0:02:51]} 6. O-O {[%clk 0:02:41.8]} 6... Nf6 {[%clk 0:02:50.9]}
7. Qe2 {[%clk 0:02:34.4]} 7... Be7 {[%clk 0:02:49.6]} 8. Nc3 {[%clk 0:02:32.4]}
8... Qh5 {[%clk 0:02:46.4]} 9. Ne4 {[%clk 0:02:32.1]} 9... O-O {[%clk
0:02:34.9]} 10. c3 {[%clk 0:02:24.1]} 10... Nbd7 {[%clk 0:02:32.2]} 11. a4
{[%clk 0:02:23.2]} 11... Bd6 {[%clk 0:02:22.3]} 12. Ng3 {[%clk 0:02:06.2]} 12...
Bxf3 {[%clk 0:02:13]} 13. Nxh5 {[%clk 0:02:04.3]} 13... Bxe2 {[%clk 0:02:13.6]}
14. Nxf6+ {[%clk 0:02:04.2]} 14... Nxf6 {[%clk 0:02:12.8]} 15. Bxe2 {[%clk
0:02:04.8]} 15... h6 {[%clk 0:02:12.9]} 16. a5 {[%clk 0:02:02.8]} 16... c5
{[%clk 0:02:12.5]} 17. Bf3 {[%clk 0:02:01.4]} 17... Rab8 {[%clk 0:02:04.5]} 18.
axb6 {[%clk 0:01:55.6]} 18... axb6 {[%clk 0:02:04.5]} 19. Rd1 {[%clk 0:01:20.8]}
19... cxd4 {[%clk 0:02:02.7]} 20. Rxd4 {[%clk 0:01:19.6]} 20... Bc5 {[%clk
0:02:02.7]} 21. Rd1 {[%clk 0:01:16.4]} 21... e5 {[%clk 0:02:03.1]} 22. b4 {[%clk
0:01:07.2]} 22... Be7 {[%clk 0:02:03.1]} 23. Be3 {[%clk 0:01:06]} 23... Rfc8
{[%clk 0:02:02.9]} 24. Ra3 {[%clk 0:01:04.9]} 24... Rc7 {[%clk 0:01:55.1]} 25.
Kf1 {[%clk 0:00:52.7]} 25... b5 {[%clk 0:01:54.3]} 26. Be2 {[%clk 0:00:47.5]}
26... Ne4 {[%clk 0:01:53.1]} 27. Rd3 {[%clk 0:00:44]} 27... Rbc8 {[%clk
0:01:53.2]} 28. Bg4 {[%clk 0:00:39.7]} 28... Rb8 {[%clk 0:01:49.1]} 29. Bf3
{[%clk 0:00:34.2]} 29... Nd6 {[%clk 0:01:47.9]} 30. Bc5 {[%clk 0:00:30.5]} 30...
Nc4 {[%clk 0:01:43.5]} 31. Ra7 {[%clk 0:00:25.5]} 31... Rxa7 {[%clk 0:01:33.4]}
32. Bxa7 {[%clk 0:00:26.4]} 32... Rc8 {[%clk 0:01:34.1]} 33. Rd7 {[%clk
0:00:19.8]} 33... Kf8 {[%clk 0:01:34.3]} 34. Bb7 {[%clk 0:00:18.5]} 34... Re8
{[%clk 0:01:34.3]} 35. Bc6 {[%clk 0:00:17.3]} 35... Rc8 {[%clk 0:01:31.3]} 36.
Bb7 {[%clk 0:00:17.1]} 36... Rd8 {[%clk 0:01:05.5]} 37. Bc6 {[%clk 0:00:16.2]}
37... Rxd7 {[%clk 0:01:01.6]} 38. Bxd7 {[%clk 0:00:17.1]} 38... Na3 {[%clk
0:01:02.5]} 39. Ke2 {[%clk 0:00:15.4]} 39... Bd6 {[%clk 0:01:01.7]} 40. Kd3
{[%clk 0:00:14.1]} 40... Ke7 {[%clk 0:01:02.4]} 41. Bc6 {[%clk 0:00:13.5]} 41...
f5 {[%clk 0:01:03]} 42. f3 {[%clk 0:00:12.7]} 42... Kd8 {[%clk 0:00:59.3]} 43.
Bb6+ {[%clk 0:00:12.1]} 43... Kc8 {[%clk 0:00:59.8]} 44. Bd5 {[%clk 0:00:11.7]}
44... Kd7 {[%clk 0:00:59.9]} 45. g4 {[%clk 0:00:11.2]} 45... e4+ {[%clk
0:00:57.8]} 46. fxe4 {[%clk 0:00:10.9]} 46... fxg4 {[%clk 0:00:58.5]} 47. Bd4
{[%clk 0:00:05.9]} 47... Bxh2 {[%clk 0:00:58.4]} 48. Bxg7 {[%clk 0:00:03.9]}
48... h5 {[%clk 0:00:57.8]} 49. e5 {[%clk 0:00:03.5]} 49... Nc4 {[%clk
0:00:54.1]} 50. e6+ {[%clk 0:00:01.7]} 50... Kd6 {[%clk 0:00:52.6]} 51. Bf8+
{[%clk 0:00:01.1]} 51... Kxd5 {[%clk 0:00:53.1]} 52. e7 {[%clk 0:00:01.7]} 52...
Nd6 {[%clk 0:00:53]} 0-1

[Event "*** Titled Tuesday Blitz"]
[Site "Chess.com"]
[Date "2020.04.28"]
[Round "5"]
[White "Infernal_XaM"]
[Black "ulises2013"]
[Result "1-0"]
[WhiteElo "2916"]
[BlackElo "2618"]
[TimeControl "180+1"]
[EndTime "10:55:45 PDT"]
[Termination "Infernal_XaM won by resignation"]

1. d4 {[%clk 0:03:00.9]} 1... g6 {[%clk 0:02:59.9]} 2. e4 {[%clk 0:02:58.8]}
2... Bg7 {[%clk 0:03:00.1]} 3. Nc3 {[%clk 0:02:59.3]} 3... c5 {[%clk 0:03:00.5]}
4. dxc5 {[%clk 0:02:58]} 4... Bxc3+ {[%clk 0:03:00.2]} 5. bxc3 {[%clk
0:02:57.5]} 5... Qa5 {[%clk 0:03:00.8]} 6. Rb1 {[%clk 0:02:53.9]} 6... Qxc5
{[%clk 0:02:51.4]} 7. Qd4 {[%clk 0:02:51.3]} 7... Qxd4 {[%clk 0:02:35.6]} 8.
cxd4 {[%clk 0:02:51]} 8... b6 {[%clk 0:02:35.2]} 9. Bd3 {[%clk 0:02:45.7]} 9...
Bb7 {[%clk 0:02:35.2]} 10. a4 {[%clk 0:02:45.8]} 10... Nf6 {[%clk 0:02:23.5]}
11. f3 {[%clk 0:02:43.4]} 11... d5 {[%clk 0:02:13.7]} 12. e5 {[%clk 0:02:39.3]}
12... Nfd7 {[%clk 0:02:13.8]} 13. a5 {[%clk 0:02:38.7]} 13... Nc6 {[%clk
0:01:58.2]} 14. axb6 {[%clk 0:02:37]} 14... axb6 {[%clk 0:01:46.6]} 15. Ne2
{[%clk 0:02:35.9]} 15... O-O {[%clk 0:01:41.6]} 16. h4 {[%clk 0:02:32.7]} 16...
Ra4 {[%clk 0:01:27.4]} 17. c3 {[%clk 0:02:26.7]} 17... Ba6 {[%clk 0:01:22.1]}
18. Bxa6 {[%clk 0:02:19.2]} 18... Rxa6 {[%clk 0:01:23]} 19. h5 {[%clk
0:02:18.9]} 19... Na5 {[%clk 0:01:08.9]} 20. hxg6 {[%clk 0:01:54.6]} 20... hxg6
{[%clk 0:00:55.8]} 21. e6 {[%clk 0:01:51.1]} 21... Nf6 {[%clk 0:00:49.5]} 22.
exf7+ {[%clk 0:01:40.5]} 22... Kxf7 {[%clk 0:00:50.4]} 23. Nf4 {[%clk
0:01:38.4]} 23... Nc4 {[%clk 0:00:46.7]} 24. Nd3 {[%clk 0:01:36.7]} 24... Rfa8
{[%clk 0:00:42.8]} 25. Ne5+ {[%clk 0:01:28.8]} 25... Nxe5 {[%clk 0:00:39.9]} 26.
dxe5 {[%clk 0:01:29.3]} 26... Ra1 {[%clk 0:00:39.9]} 27. Rxa1 {[%clk 0:01:26]}
27... Rxa1 {[%clk 0:00:40.8]} 28. Kf2 {[%clk 0:01:22.7]} 28... Nd7 {[%clk
0:00:28.3]} 29. Rh7+ {[%clk 0:01:19.6]} 29... Ke6 {[%clk 0:00:27.9]} 30. Bg5
{[%clk 0:01:17.9]} 30... Nxe5 {[%clk 0:00:28]} 31. Rxe7+ {[%clk 0:01:14.9]}
31... Kd6 {[%clk 0:00:28.3]} 32. Rg7 {[%clk 0:01:10.8]} 32... Ke6 {[%clk
0:00:21]} 33. Be3 {[%clk 0:01:06.7]} 33... Rb1 {[%clk 0:00:18.4]} 34. Bd4 {[%clk
0:01:04.4]} 34... b5 {[%clk 0:00:14.6]} 35. f4 {[%clk 0:01:02.4]} 35... Nd3+
{[%clk 0:00:05.3]} 36. Ke3 {[%clk 0:01:01.1]} 36... Ne1 {[%clk 0:00:05.2]} 37.
Rxg6+ {[%clk 0:01:01]} 37... Kf7 {[%clk 0:00:05.7]} 38. f5 {[%clk 0:00:59.1]}
38... b4 {[%clk 0:00:02.8]} 39. g4 {[%clk 0:00:48.8]} 39... Nc2+ {[%clk
0:00:02.8]} 40. Kf4 {[%clk 0:00:47.3]} 40... Nxd4 {[%clk 0:00:03.1]} 41. cxd4
{[%clk 0:00:47]} 41... Rf1+ {[%clk 0:00:02.8]} 42. Kg5 {[%clk 0:00:44.9]} 42...
b3 {[%clk 0:00:01.1]} 43. Rb6 {[%clk 0:00:45.4]} 43... Rf3 {[%clk 0:00:01.3]}
44. Rb7+ {[%clk 0:00:45.4]} 44... Ke8 {[%clk 0:00:01.8]} 45. Kf6 {[%clk
0:00:45.8]} 45... Rf4 {[%clk 0:00:01.8]} 46. g5 {[%clk 0:00:45.8]} 1-0